bitfinex/quotes_SOLUSD_20250525
["timestamp","ask_amount","ask_price","bid_price","bid_amount"]
[1748167273830,18.79181043,171.67,171.65,37.94]
[1748167274036,44.79181043,171.67,171.66,34.88]
[1748167275438,18.79181043,171.68,171.66,34.88]
[1748167275634,18.79181043,171.71,171.66,34.88]
[1748167276055,44.79181043,171.71,171.66,34.88]
[1748167276367,26.0,171.68,171.66,34.88]
[1748167276658,18.79181043,171.67,171.66,34.88]
[1748167281863,18.79181043,171.67,171.64,83.7]
[1748167282059,18.79181043,171.67,171.65,72.82]
[1748167287645,26.0,171.68,171.65,72.82]
[1748167287852,0.14216157,171.67,171.65,72.82]
[1748167289262,0.14216157,171.67,171.65,37.94]
[1748167289468,0.14216157,171.67,171.66,34.88]
[1748167294849,0.14216157,171.67,171.66,37.88]
[1748167295154,0.14216157,171.67,171.66,72.78]
[1748167296871,35.04216157,171.67,171.66,72.78]
[1748167297174,18.79181043,171.67,171.66,72.78]
[1748167297587,18.79181043,171.67,171.66,156.52]
[1748167299880,18.79181043,171.63,171.58,6.3642]
[1748167300082,18.79181043,171.63,171.59,72.78]
[1748167302088,18.79181043,171.63,171.59,37.88]
[1748167302274,18.79181043,171.63,171.6,34.9]
[1748167303161,44.79181043,171.6,171.46,7.655]
[1748167303362,18.79181043,171.55,171.47,37.9]
[1748167303579,18.79181043,171.55,171.48,34.9]
[1748167303895,8.11265351,171.58,171.48,34.9]
[1748167304082,0.14216157,171.54,171.48,34.9]
[1748167304290,26.0,171.56,171.48,34.9]
[1748167307190,1.504,171.62,171.48,34.9]
[1748167307399,1.504,171.62,171.48,60.9]
[1748167307583,18.79181043,171.61,171.49,89.8916]
[1748167307776,18.79181043,171.59,171.49,89.8916]
[1748167308170,18.79181043,171.59,171.49,172.7916]
[1748167310400,26.0,171.6,171.5,1.5364]
[1748167312495,18.79181043,171.57,171.51,72.8]
[1748167313998,18.79181043,171.57,171.51,37.9]
[1748167314192,18.79181043,171.57,171.52,34.9]
[1748167314993,26.0,171.54,171.52,34.9]
[1748167315412,18.79181043,171.53,171.49,83.76]
[1748167315577,18.79181043,171.53,171.5,72.8]
[1748167316296,18.79181043,171.53,171.49,83.76]
[1748167316598,18.79181043,171.53,171.51,72.76]
[1748167320898,18.79181043,171.53,171.51,37.86]
[1748167321110,18.79181043,171.53,171.52,34.92]
[1748167327203,8.32096854,171.63,171.52,42.8961]
[1748167327720,8.32096854,171.63,171.54,16.4727]
[1748167327891,8.32096854,171.63,171.55,34.92]
[1748167328283,8.32096854,171.63,171.55,44.92]
[1748167328823,0.14216157,171.69,171.55,44.92]
[1748167329186,0.14216157,171.69,171.58,26.0]
[1748167329396,26.0,171.7,171.59,72.76]
[1748167329602,18.79181043,171.69,171.59,72.76]
[1748167330001,1.5884,171.75,171.61,26.0]
[1748167330202,0.14216157,171.74,171.61,26.0]
[1748167330392,0.14216157,171.74,171.63,26.0]
[1748167330689,26.0,171.73,171.65,1.5763]
[1748167330894,26.14216157,171.75,171.66,37.86]
[1748167331315,0.14216157,171.78,171.66,37.86]
[1748167331610,44.79181043,171.76,171.67,72.76]
[1748167331813,44.64964886,171.76,171.67,72.76]
[1748167331999,0.14216157,171.75,171.67,72.76]
[1748167334924,0.14216157,171.75,171.64,83.76]
[1748167334925,0.14216157,171.75,171.68,72.74]
[1748167341522,0.14216157,171.75,171.64,83.76]
[1748167341717,0.14216157,171.75,171.65,72.72]
[1748167341900,18.79181043,171.71,171.65,72.72]
[1748167342418,18.79181043,171.71,171.66,72.72]
[1748167344546,136.9,171.76,171.66,72.72]
[1748167344704,18.79181043,171.78,171.67,6.4733]
[1748167344906,0.14216157,171.76,171.68,1.5769]
[1748167345106,0.14216157,171.78,171.68,1.5769]
[1748167345311,26.14216157,171.78,171.68,84.4769]
[1748167345527,0.14216157,171.81,171.68,1.5769]
[1748167345703,18.79181043,171.78,171.68,84.4769]
[1748167345905,0.14216157,171.78,171.68,84.4769]
[1748167346115,0.14216157,171.79,171.68,84.4769]
[1748167346512,18.79181043,171.79,171.68,84.4769]
[1748167346912,18.79181043,171.79,171.68,1.5769]
[1748167347120,18.79181043,171.8,171.7,26.0]
[1748167347441,18.79181043,171.8,171.71,34.88]
[1748167347721,26.0,171.82,171.72,37.8]
[1748167350031,18.79181043,171.81,171.72,37.8]
[1748167353308,18.79181043,171.81,171.7,26.0]
[1748167353509,18.79181043,171.81,171.68,84.4769]
[1748167353510,18.79181043,171.81,171.71,72.66]
[1748167353721,18.79181043,171.77,171.68,1.5769]
[1748167353929,18.79181043,171.77,171.69,72.66]
[1748167354208,18.79181043,171.77,171.7,34.88]
[1748167355835,18.79181043,171.73,171.71,72.66]
[1748167356131,18.79181043,171.73,171.72,37.78]
[1748167356317,18.79181043,171.75,171.72,37.78]
[1748167356513,18.79181043,171.77,171.72,37.78]
[1748167360935,18.79181043,171.77,171.73,83.68]
[1748167364538,18.79181043,171.83,171.73,83.68]
[1748167366745,18.79181043,171.79,171.73,83.68]
[1748167366949,18.79181043,171.79,171.74,72.66]
[1748167369438,1.6274,171.84,171.74,72.66]
[1748167369647,18.79181043,171.83,171.74,72.66]
[1748167369849,18.79181043,171.81,171.74,72.66]
[1748167372653,1.6274,171.84,171.74,72.66]
[1748167372654,44.79181043,171.83,171.74,72.66]
[1748167376153,26.14216157,171.83,171.74,72.66]
[1748167376542,26.14216157,171.83,171.74,37.78]
[1748167376543,0.14216157,171.81,171.74,37.78]
[1748167376744,44.79181043,171.76,171.75,34.86]
[1748167380858,44.79181043,171.76,171.74,37.78]
[1748167381045,44.79181043,171.76,171.75,34.86]
[1748167384135,183.26061043,171.76,171.74,37.78]
[1748167385270,183.26061043,171.76,171.75,34.88]
[1748167387737,183.26061043,171.76,171.74,37.78]
[1748167387962,183.26061043,171.76,171.6,1.6514]
[1748167387963,218.16061043,171.76,171.6,1.6514]
[1748167388141,192.16061043,171.76,171.6,1.6514]
[1748167388341,18.79181043,171.72,171.6,1.6514]
[1748167388950,18.79181043,171.72,171.61,34.88]
[1748167394539,26.0,171.69,171.6,84.5514]
[1748167394743,18.79181043,171.68,171.61,34.88]
[1748167397567,18.79181043,171.68,171.62,121.48]
[1748167398162,18.79181043,171.7,171.62,121.48]
[1748167399267,18.79181043,171.75,171.63,6.6434]
[1748167399466,18.79181043,171.73,171.63,6.6434]
[1748167399671,18.79181043,171.69,171.64,72.66]
[1748167403380,18.79181043,171.74,171.64,72.66]
[1748167403953,18.79181043,171.74,171.65,72.66]
[1748167407659,44.79181043,171.69,171.66,83.72]
[1748167409879,18.79181043,171.75,171.66,89.8112]
[1748167410075,18.79181043,171.73,171.66,89.8112]
[1748167411084,18.79181043,171.69,171.67,72.62]
[1748167411275,18.79181043,171.69,171.68,72.62]
[1748167411478,26.0,171.7,171.68,72.62]
[1748167411479,26.14216157,171.7,171.68,72.62]
[1748167411663,18.79181043,171.69,171.68,72.62]
[1748167413778,18.79181043,171.69,171.66,83.72]
[1748167413779,44.79181043,171.67,171.66,83.72]
[1748167413979,44.79181043,171.67,171.66,156.34]
[1748167419382,44.79181043,171.67,171.66,121.46]
[1748167419596,44.79181043,171.67,171.66,156.36]
[1748167420583,47.69437203,171.67,171.66,156.36]
[1748167421871,18.79181043,171.62,171.57,6.4391]
[1748167422097,18.79181043,171.62,171.58,37.76]
[1748167423100,18.79181043,171.62,171.59,34.9]
[1748167427505,18.79181043,171.62,171.6,83.74]
[1748167427698,18.79181043,171.62,171.61,34.9]
[1748167439116,18.79181043,171.62,171.61,72.64]
[1748167441442,1.5449,171.69,171.61,72.64]
[1748167441601,18.79181043,171.69,171.61,72.64]
[1748167441932,44.79181043,171.69,171.63,6.23]
[1748167442091,44.79181043,171.69,171.64,34.9]
[1748167442295,18.79181043,171.7,171.64,34.9]
[1748167442621,44.79181043,171.7,171.64,34.9]
[1748167443219,18.79181043,171.7,171.64,34.9]
[1748167443917,44.79181043,171.7,171.64,34.9]
[1748167444108,18.79181043,171.72,171.64,34.9]
[1748167444421,0.14216157,171.72,171.64,34.9]
[1748167444620,0.14216157,171.73,171.64,34.9]
[1748167448916,0.14216157,171.73,171.64,117.8]
[1748167457542,0.14216157,171.73,171.65,83.7]
[1748167458842,0.14216157,171.73,171.65,166.6]
[1748167464129,0.14216157,171.73,171.66,37.72]
[1748167467350,44.79181043,171.77,171.66,37.72]
[1748167467551,44.79181043,171.77,171.66,120.62]
[1748167472237,44.79181043,171.77,171.67,1.5739]
[1748167472432,44.79181043,171.77,171.68,34.88]
[1748167473553,44.79181043,171.77,171.69,83.7]
[1748167478351,44.79181043,171.77,171.7,37.7]
[1748167480045,44.79181043,171.77,171.71,34.88]
[1748167480555,44.79181043,171.77,171.7,37.7]
[1748167480857,44.79181043,171.72,171.71,34.88]
[1748167483965,18.79181043,171.72,171.71,34.88]
[1748167488076,18.79181043,171.72,171.71,118.58]
[1748167492970,18.79181043,171.72,171.71,156.28]
[1748167493869,18.79181043,171.75,171.71,156.28]
[1748167497276,0.14216157,171.76,171.71,156.28]
[1748167500567,26.0,171.79,171.71,156.28]
[1748167500756,18.79181043,171.78,171.71,156.28]
[1748167505089,18.79181043,171.74,171.71,83.7]
[1748167505382,18.79181043,171.74,171.72,72.56]
[1748167506399,44.79181043,171.75,171.64,82.9]
[1748167506682,18.79181043,171.7,171.65,156.24]
[1748167506858,18.79181043,171.7,171.66,34.88]
[1748167511890,18.79181043,171.7,171.67,34.88]
[1748167513784,18.79181043,171.7,171.65,121.36]
[1748167513987,18.79181043,171.66,171.65,121.36]
[1748167514185,18.79181043,171.66,171.65,156.24]
[1748167515180,18.79181043,171.68,171.65,156.24]
[1748167515574,26.0,171.66,171.65,156.24]
[1748167515897,18.79181043,171.65,171.56,8.1101]
[1748167516074,18.79181043,171.65,171.57,72.56]
[1748167516695,18.79181043,171.65,171.57,37.68]
[1748167516998,18.79181043,171.65,171.58,34.88]
[1748167517496,18.79181043,171.65,171.59,83.7]
[1748167517997,18.79181043,171.61,171.59,83.7]
[1748167518199,18.79181043,171.61,171.6,34.88]
[1748167522471,26.0,171.65,171.6,34.88]
[1748167522692,18.79181043,171.64,171.6,34.88]
[1748167522885,18.79181043,171.66,171.6,34.88]
[1748167523493,0.14216157,171.66,171.6,34.88]
[1748167523999,0.14216157,171.66,171.6,117.78]
[1748167524198,18.79181043,171.69,171.6,117.78]
[1748167524691,26.0,171.68,171.6,117.78]
[1748167534410,26.0,171.67,171.6,117.78]
[1748167534703,18.79181043,171.7,171.6,117.78]
[1748167535411,18.79181043,171.73,171.6,117.78]
[1748167535704,18.79181043,171.71,171.6,117.78]
[1748167535902,18.79181043,171.71,171.61,1.5955]
[1748167536608,18.79181043,171.74,171.61,1.5955]
[1748167536809,44.79181043,171.74,171.61,84.4955]
[1748167540906,44.79181043,171.74,171.62,6.4632]
[1748167541111,44.79181043,171.74,171.63,37.66]
[1748167541286,44.79181043,171.74,171.64,34.88]
[1748167541606,18.79181043,171.78,171.64,117.78]
[1748167541906,18.79181043,171.76,171.65,1.5132]
[1748167551103,18.79181043,171.76,171.66,6.6284]
[1748167551922,18.79181043,171.76,171.66,89.5284]
[1748167552638,4.88522855,171.79,171.7,1.5393]
[1748167552799,0.14216157,171.83,171.71,72.54]
[1748167553122,0.14216157,171.83,171.71,155.44]
[1748167553315,18.79181043,171.83,171.71,155.44]
[1748167553494,18.79181043,171.79,171.71,155.44]
[1748167553695,18.79181043,171.79,171.71,72.54]
[1748167553920,18.79181043,171.79,171.66,26.0]
[1748167554109,26.0,171.74,171.67,72.54]
[1748167554309,18.79181043,171.73,171.67,72.54]
[1748167555018,18.79181043,171.75,171.67,72.54]
[1748167555210,18.79181043,171.75,171.67,37.66]
[1748167555416,26.0,171.76,171.68,34.88]
[1748167557804,18.79181043,171.75,171.68,34.88]
[1748167559030,18.79181043,171.75,171.69,83.68]
[1748167560030,18.79181043,171.75,171.7,34.88]
[1748167560233,18.79181043,171.75,171.69,83.68]
[1748167560421,18.79181043,171.75,171.7,34.88]
[1748167560732,18.79181043,171.75,171.71,34.88]
[1748167560921,18.79181043,171.71,171.69,83.68]
[1748167561123,18.79181043,171.71,171.7,34.88]
[1748167561722,18.79181043,171.71,171.69,83.68]
[1748167562344,18.79181043,171.71,171.7,34.88]
[1748167563440,44.79181043,171.71,171.7,34.88]
[1748167570834,18.79181043,171.71,171.7,34.88]
[1748167571535,8.32096854,171.76,171.7,34.88]
[1748167571724,18.79181043,171.75,171.7,34.88]
[1748167585131,18.79181043,171.77,171.7,117.78]
[1748167586353,18.79181043,171.77,171.71,38.38]
[1748167595065,18.79181043,171.77,171.72,34.88]
[1748167595941,18.79181043,171.77,171.73,83.68]
[1748167600953,18.79181043,171.77,171.74,38.36]
[1748167601151,18.79181043,171.77,171.75,34.88]
[1748167605571,18.79181043,171.77,171.76,83.68]
[1748167606765,18.64964886,171.77,171.76,83.68]
[1748167606971,44.79181043,171.79,171.76,83.68]
[1748167607770,18.79181043,171.82,171.76,83.68]
[1748167611161,18.79181043,171.82,171.77,38.36]
[1748167611363,18.79181043,171.82,171.78,34.86]
[1748167615972,44.64964886,171.8,171.79,83.66]
[1748167617151,14.77779709,171.86,171.79,83.66]
[1748167617354,18.79181043,171.85,171.79,83.66]
[1748167617651,18.64964886,171.81,171.79,83.66]
[1748167618359,18.79181043,171.85,171.79,83.66]
[1748167618572,44.79181043,171.85,171.79,83.66]
[1748167621379,18.79181043,171.85,171.79,83.66]
[1748167621679,14.71659709,171.9,171.79,166.56]
[1748167621909,0.14216157,171.89,171.8,1.6083]
[1748167622058,0.14216157,171.9,171.81,41.3503]
[1748167622381,8.32096854,171.91,171.81,41.3503]
[1748167622679,8.32096854,171.91,171.81,51.93195258]
[1748167622858,8.32096854,171.91,171.82,1.6083]
[1748167623057,8.32096854,171.91,171.83,38.34]
[1748167623257,8.32096854,171.91,171.84,34.86]
[1748167623686,8.32096854,171.91,171.85,6.4903]
[1748167623993,18.79181043,171.97,171.85,6.4903]
[1748167624165,0.14216157,171.94,171.85,6.4903]
[1748167625274,18.64964886,171.95,171.85,6.4903]
[1748167627684,18.64964886,171.96,171.86,1.6034]
[1748167630694,26.0,171.97,171.86,1.6034]
[1748167630989,18.79181043,171.99,171.88,26.0]
[1748167631193,44.79181043,171.99,171.89,73.38]
[1748167632788,18.79181043,171.95,171.89,73.38]
[1748167633999,20.34721043,171.95,171.89,73.38]
[1748167635186,20.34721043,171.95,171.9,34.84]
[1748167635580,18.79181043,171.91,171.9,34.84]
[1748167636883,18.79181043,171.9,171.79,83.66]
[1748167637204,18.79181043,171.84,171.8,38.52]
[1748167637376,18.79181043,171.84,171.81,34.84]
[1748167637578,18.64964886,171.84,171.81,34.84]
[1748167637779,18.64964886,171.86,171.81,34.84]
[1748167638274,18.79181043,171.88,171.81,34.84]
[1748167639005,18.79181043,171.9,171.81,34.84]
[1748167641820,18.79181043,171.9,171.81,36.4937]
[1748167641821,18.64964886,171.9,171.81,36.4937]
[1748167642380,18.64964886,171.9,171.81,119.3937]
[1748167642909,18.79181043,171.92,171.81,119.3937]
[1748167643874,18.64964886,171.88,171.81,119.3937]
[1748167650610,0.14216157,171.88,171.81,117.74]
[1748167650807,0.14216157,171.89,171.8,38.52]
[1748167650808,18.79181043,171.86,171.8,38.52]
[1748167651002,18.64964886,171.82,171.79,83.66]
[1748167651208,18.64964886,171.82,171.81,73.38]
[1748167651209,18.79181043,171.82,171.81,73.38]
[1748167653533,18.79181043,171.82,171.81,38.54]
[1748167654016,18.79181043,171.82,171.81,73.38]
[1748167664222,0.14216157,171.82,171.81,73.38]
[1748167667394,26.14216157,171.82,171.81,38.54]
[1748167667631,18.79181043,171.81,171.79,83.66]
[1748167667799,18.79181043,171.81,171.8,74.44]
[1748167668113,0.14216157,171.81,171.8,74.44]
[1748167671131,0.14216157,171.81,171.8,39.58]
[1748167671435,18.79181043,171.85,171.8,74.44]
[1748167671611,18.79181043,171.83,171.8,74.44]
[1748167672004,0.14216157,171.83,171.8,74.44]
[1748167672233,18.79181043,171.83,171.8,74.44]
[1748167676341,18.79181043,171.83,171.81,83.66]
[1748167676551,18.79181043,171.83,171.82,34.86]
[1748167681127,44.64964886,171.82,171.81,83.66]
[1748167681325,18.79181043,171.81,171.69,6.6064]
[1748167681525,18.79181043,171.81,171.7,74.44]
[1748167682019,26.0,171.82,171.7,74.44]
[1748167682225,0.14216157,171.8,171.7,74.44]
[1748167685248,0.14216157,171.8,171.71,34.86]
[1748167685943,18.79181043,171.77,171.71,34.86]
[1748167686454,18.79181043,171.77,171.7,39.58]
[1748167686455,18.64964886,171.73,171.7,39.58]
[1748167686667,18.64964886,171.73,171.68,1.5822]
[1748167686825,0.14216157,171.72,171.69,39.06]
[1748167687020,0.14216157,171.72,171.7,34.86]
[1748167687444,0.14216157,171.72,171.71,34.86]
[1748167687650,0.14216157,171.72,171.71,118.52]
[1748167697359,0.14216157,171.72,171.69,39.06]
[1748167697576,0.14216157,171.72,171.6,6.1241]
[1748167697577,18.79181043,171.69,171.6,6.1241]
[1748167697742,18.79181043,171.65,171.61,157.62]
[1748167697946,18.79181043,171.65,171.62,34.88]
[1748167698567,18.79181043,171.65,171.61,122.74]
[1748167698771,18.79181043,171.65,171.62,34.88]
[1748167699569,18.79181043,171.67,171.62,34.88]
[1748167700272,18.79181043,171.69,171.63,6.1452]
[1748167700476,18.64964886,171.69,171.63,6.1452]
[1748167700771,18.64964886,171.7,171.63,6.1452]
[1748167703073,0.14216157,171.69,171.63,6.1452]
[1748167704755,0.14216157,171.69,171.64,73.96]
[1748167707069,18.64964886,171.7,171.64,73.96]
[1748167708262,0.14216157,171.71,171.64,73.96]
[1748167708989,0.14216157,171.71,171.63,6.1452]
[1748167708990,18.79181043,171.68,171.46,10.0]
[1748167709157,18.79181043,171.62,171.55,83.7]
[1748167709353,18.79181043,171.62,171.56,34.88]
[1748167709673,18.79181043,171.62,171.57,39.08]
[1748167709674,31.43179113,171.62,171.57,39.08]
[1748167709855,18.79181043,171.6,171.57,39.08]
[1748167711055,0.14216157,171.61,171.57,39.08]
[1748167711257,18.79181043,171.57,171.55,83.7]
[1748167711455,18.79181043,171.57,171.56,73.96]
[1748167711672,32.65555813,171.57,171.56,73.96]
[1748167712266,37.33528581,171.57,171.56,73.96]
[1748167712581,32.65555813,171.57,171.56,73.96]
[1748167713871,32.65555813,171.57,171.56,73.98]
[1748167724587,58.65555813,171.57,171.56,73.98]
[1748167726802,32.65555813,171.57,171.56,73.98]
[1748167727100,36.83995807,171.57,171.56,39.66]
[1748167727275,63.23628872,171.57,171.56,74.58]
[1748167727476,98.13628872,171.57,171.56,74.58]
[1748167730397,89.21483807,171.57,171.56,74.58]
[1748167730697,71.73995807,171.57,171.56,74.58]
[1748167732900,71.73995807,171.57,171.56,39.66]
[1748167733101,71.73995807,171.57,171.56,74.58]
[1748167735606,71.73995807,171.57,171.56,39.66]
[1748167735776,71.73995807,171.57,171.56,74.58]
[1748167737200,89.17995807,171.57,171.56,74.58]
[1748167737385,71.73995807,171.57,171.56,74.58]
[1748167737585,89.21585607,171.57,171.56,74.58]
[1748167738493,71.73995807,171.57,171.56,74.58]
[1748167741331,18.79181043,171.57,171.56,74.58]
[1748167741493,0.14216157,171.58,171.56,74.58]
[1748167741688,44.79181043,171.57,171.56,74.58]
[1748167742295,18.79181043,171.57,171.56,74.58]
[1748167742717,44.79181043,171.57,171.56,74.58]
[1748167743420,18.79181043,171.57,171.56,74.58]
[1748167745220,18.64964886,171.57,171.56,74.58]
[1748167748650,18.79181043,171.63,171.56,74.58]
[1748167748812,0.14216157,171.62,171.57,8.0399]
[1748167749138,18.64964886,171.63,171.58,34.92]
[1748167749833,18.79181043,171.64,171.58,34.92]
[1748167750129,44.79181043,171.64,171.58,34.92]
[1748167753916,18.64964886,171.64,171.58,34.92]
[1748167754808,0.14216157,171.66,171.58,34.92]
[1748167756840,18.79181043,171.63,171.57,90.9399]
[1748167757145,18.79181043,171.63,171.58,34.9]
[1748167757642,18.79181043,171.63,171.59,34.9]
[1748167758156,25.97244229,171.63,171.6,34.9]
[1748167758319,44.64964886,171.61,171.6,34.9]
[1748167759347,0.14216157,171.59,171.56,39.66]
[1748167759545,0.14216157,171.59,171.57,73.7]
[1748167759837,18.79181043,171.58,171.57,73.7]
[1748167764319,18.64964886,171.58,171.57,73.7]
[1748167764740,18.79181043,171.58,171.57,73.7]
[1748167768440,18.64964886,171.58,171.57,73.7]
[1748167768825,18.79181043,171.58,171.57,73.7]
[1748167769746,18.79181043,171.58,171.57,38.8]
[1748167769933,18.79181043,171.58,171.57,73.7]
[1748167771646,44.79181043,171.58,171.57,73.7]
[1748167772243,18.79181043,171.58,171.57,38.8]
[1748167772549,25.97244229,171.58,171.55,83.7]
[1748167772735,44.79181043,171.56,171.55,83.7]
[1748167772933,51.97244229,171.56,171.55,157.4]
[1748167773981,56.5674544,171.56,171.55,157.4]
[1748167774126,18.79181043,171.51,171.45,8.0358]
[1748167774932,18.79181043,171.51,171.41,7.6994]
[1748167775346,18.79181043,171.51,171.42,34.9]
[1748167776346,18.79181043,171.47,171.41,7.6994]
[1748167776553,18.79181043,171.47,171.43,34.9]
[1748167776844,18.79181043,171.47,171.41,7.6994]
[1748167776845,18.79181043,171.47,171.37,7.6994]
[1748167777044,18.79181043,171.47,171.38,34.92]
[1748167777748,18.79181043,171.43,171.39,157.52]
[1748167778151,26.0,171.4,171.29,6.1449]
[1748167778349,18.79181043,171.39,171.3,157.76]
[1748167779144,18.64964886,171.41,171.3,157.76]
[1748167780351,0.14216157,171.4,171.3,157.76]
[1748167781144,0.14216157,171.4,171.3,122.84]
[1748167781340,0.14216157,171.4,171.31,34.92]
[1748167781552,0.14216157,171.4,171.32,34.92]
[1748167782958,0.14216157,171.4,171.33,34.92]
[1748167783154,1.6525,171.43,171.34,34.92]
[1748167783155,18.79181043,171.37,171.34,34.92]
[1748167783355,18.79181043,171.37,171.35,34.92]
[1748167783655,18.79181043,171.37,171.36,39.08]
[1748167783861,18.79181043,171.37,171.36,74.0]
[1748167784037,1.6525,171.43,171.36,74.0]
[1748167784038,0.14216157,171.4,171.36,74.0]
[1748167784240,18.79181043,171.38,171.36,74.0]
[1748167786052,18.79181043,171.37,171.36,74.0]
[1748167789566,18.79181043,171.42,171.36,74.0]
[1748167789742,44.79181043,171.42,171.36,74.0]
[1748167789939,18.79181043,171.38,171.36,74.0]
[1748167790743,18.79181043,171.41,171.36,74.0]
[1748167797142,18.64964886,171.41,171.36,80.4548]
[1748167797772,18.64964886,171.41,171.37,83.86]
[1748167799347,0.14216157,171.43,171.37,83.86]
[1748167799348,18.79181043,171.43,171.37,83.86]
[1748167802366,18.79181043,171.43,171.37,166.76]
[1748167802985,18.79181043,171.46,171.37,166.76]
[1748167803279,44.79181043,171.46,171.37,166.76]
[1748167806362,18.79181043,171.42,171.37,166.76]
[1748167806671,18.79181043,171.42,171.37,83.86]
[1748167806977,18.79181043,171.42,171.38,34.94]
[1748167807272,18.79181043,171.42,171.37,83.86]
[1748167807577,18.79181043,171.38,171.37,83.86]
[1748167807774,18.79181043,171.38,171.37,118.8]
[1748167807963,18.79181043,171.38,171.37,83.86]
[1748167808157,18.79181043,171.38,171.37,118.8]
[1748167809678,18.79181043,171.38,171.37,83.86]
[1748167809884,18.79181043,171.38,171.37,118.8]
[1748167817768,18.79181043,171.38,171.37,83.86]
[1748167817969,18.79181043,171.38,171.37,118.8]
[1748167819467,18.79181043,171.38,171.37,83.86]
[1748167819781,26.0,171.39,171.37,83.86]
[1748167819782,44.79181043,171.39,171.37,159.02]
[1748167820979,44.79181043,171.39,171.37,124.08]
[1748167821189,50.53650532,171.39,171.38,34.96]
[1748167837113,85.43650532,171.39,171.27,7.9558]
[1748167837295,18.79181043,171.34,171.27,7.9558]
[1748167837494,18.79181043,171.34,171.28,124.12]
[1748167838316,18.79181043,171.34,171.29,34.96]
[1748167839915,18.79181043,171.34,171.3,34.96]
[1748167842231,18.79181043,171.34,171.31,34.96]
[1748167842608,18.79181043,171.34,171.32,39.72]
[1748167844028,18.79181043,171.34,171.33,34.96]
[1748167847530,18.79181043,171.34,171.33,118.86]
[1748167850716,18.79181043,171.33,171.27,6.3194]
[1748167850934,18.79181043,171.3,171.28,74.7]
[1748167851840,18.64964886,171.3,171.28,74.7]
[1748167854742,18.79181043,171.32,171.28,74.7]
[1748167857541,18.79181043,171.32,171.29,83.9]
[1748167857844,18.79181043,171.32,171.3,34.96]
[1748167861225,18.64964886,171.33,171.3,34.96]
[1748167861950,18.64964886,171.35,171.3,34.96]
[1748167865945,26.14216157,171.38,171.3,34.96]
[1748167866147,18.79181043,171.4,171.3,34.96]
[1748167866352,18.79181043,171.4,171.3,117.86]
[1748167867869,0.14216157,171.39,171.3,117.86]
[1748167870149,0.14216157,171.39,171.3,34.96]
[1748167873660,0.14216157,171.39,171.3,34.96]
[1748167876067,0.14216157,171.39,171.3,117.86]
[1748167889079,18.79181043,171.41,171.3,143.86]
[1748167889373,0.14216157,171.46,171.34,26.0]
[1748167889544,0.14216157,171.46,171.35,80.5826]
[1748167889545,18.79181043,171.46,171.35,80.5826]
[1748167889949,44.79181043,171.46,171.35,80.5826]
[1748167890392,18.79181043,171.42,171.36,74.54]
[1748167890692,18.64964886,171.41,171.35,6.0426]
[1748167890995,18.64964886,171.41,171.37,74.54]
[1748167895795,18.64964886,171.41,171.38,83.86]
[1748167897094,44.64964886,171.44,171.38,83.86]
[1748167897591,0.14216157,171.43,171.38,83.86]
[1748167899403,0.14216157,171.44,171.38,83.86]
[1748167902599,0.14216157,171.44,171.38,166.76]
[1748167915811,0.14216157,171.44,171.39,38.78]
[1748167916007,0.14216157,171.44,171.4,34.94]
[1748167917390,18.64964886,171.45,171.4,34.94]
[1748167917802,44.79181043,171.48,171.4,117.84]
[1748167920688,44.79181043,171.48,171.41,83.84]
[1748167922622,51.2545534,171.48,171.41,83.84]